[Event "Titled Tuesday Blitz February 22 Early 2022"]
[White "Vitiugov, Nikita"]
[Black "Ginzburg, Yakov"]
[WhiteFideId "4152956"]
[BlackFideId "4157176"]
[WhiteElo "2673"]
[BlackElo "2265"]
[Result "1-0"]
[Round "02"]
[TimeControl "180+1"]
[Date "2022.02.22"]
[WhiteClock "0:00:22"]
[BlackClock "0:00:05"]

1. e4 {[%clk 0:02:56]}  c5 {[%clk 0:02:59]} 2. Nf3 {[%clk 0:02:56]}  e6 {[%clk 0:02:59]} 3. g3 {[%clk 0:02:54]}  d5 {[%clk 0:02:56]} 4. exd5 {[%clk 0:02:52]}  exd5 {[%clk 0:02:56]} 5. Bg2 {[%clk 0:02:53]}  Nf6 {[%clk 0:02:55]} 6. O-O {[%clk 0:02:52]}  Be7 {[%clk 0:02:55]} 7. d4 {[%clk 0:02:51]}  cxd4 {[%clk 0:02:37]} 8. Nxd4 {[%clk 0:02:50]}  O-O {[%clk 0:02:37]} 9. h3 {[%clk 0:02:46]}  Nc6 {[%clk 0:02:35]} 10. Be3 {[%clk 0:02:46]}  Ne5 {[%clk 0:02:25]} 11. Nd2 {[%clk 0:02:36]}  Bd7 {[%clk 0:02:20]} 12. c3 {[%clk 0:02:34]}  Re8 {[%clk 0:02:18]} 13. Qb3 {[%clk 0:02:33]}  Bc6 {[%clk 0:02:15]} 14. N2f3 {[%clk 0:02:23]}  Nc4 {[%clk 0:02:12]} 15. Bf4 {[%clk 0:02:19]}  Ne4 {[%clk 0:02:06]} 16. Rfe1 {[%clk 0:02:15]}  Bf6 {[%clk 0:02:03]} 17. h4 {[%clk 0:02:08]}  Qd7 {[%clk 0:01:51]} 18. Qc2 {[%clk 0:01:58]}  h6 {[%clk 0:01:36]} 19. Rad1 {[%clk 0:01:54]}  Rad8 {[%clk 0:00:58]} 20. Kh2 {[%clk 0:01:43]}  Qc8 {[%clk 0:00:48]} 21. Nxc6 {[%clk 0:01:34]}  Qxc6 {[%clk 0:00:34]} 22. Nd4 {[%clk 0:01:31]}  Qb6 {[%clk 0:00:31]} 23. Re2 {[%clk 0:01:23]}  Qa6 {[%clk 0:00:18]} 24. a4 {[%clk 0:01:08]}  Ncd6 {[%clk 0:00:14]} 25. Bf3 {[%clk 0:00:59]}  Kh8 {[%clk 0:00:13]} 26. Kg2 {[%clk 0:00:56]}  Kg8 {[%clk 0:00:13]} 27. Rde1 {[%clk 0:00:53]}  Qb6 {[%clk 0:00:13]} 28. Bxd6 {[%clk 0:00:42]}  Nxd6 {[%clk 0:00:12]} 29. Rxe8+ {[%clk 0:00:39]}  Rxe8 {[%clk 0:00:13]} 30. Rxe8+ {[%clk 0:00:38]}  Nxe8 {[%clk 0:00:13]} 31. Bxd5 {[%clk 0:00:37]}  Bxd4 {[%clk 0:00:13]} 32. cxd4 {[%clk 0:00:36]}  Nf6 {[%clk 0:00:12]} 33. Qc8+ {[%clk 0:00:32]}  Kh7 {[%clk 0:00:12]} 34. Bxf7 {[%clk 0:00:31]}  Qxb2 {[%clk 0:00:10]} 35. Qf5+ {[%clk 0:00:28]}  Kh8 {[%clk 0:00:10]} 36. Qe5 {[%clk 0:00:23]}  Kh7 {[%clk 0:00:05]} 37. h5 {[%clk 0:00:22]} 1-0


[Site "https://www.chess.com"]

[Event "Titled Tuesday Blitz February 22 Early 2022"]
[White "Vlassov, Nikolai"]
[Black "Chigaev, Maksim"]
[WhiteFideId "4103360"]
[BlackFideId "4108116"]
[WhiteElo "2407"]
[BlackElo "2502"]
[Result "0-1"]
[Round "02"]
[TimeControl "180+1"]
[Date "2022.02.22"]
[WhiteClock "0:00:34"]
[BlackClock "0:01:08"]

1. e4 {[%clk 0:03:00]}  c5 {[%clk 0:02:58]} 2. c3 {[%clk 0:03:00]}  d5 {[%clk 0:02:58]} 3. exd5 {[%clk 0:03:01]}  Nf6 {[%clk 0:02:59]} 4. d4 {[%clk 0:03:01]}  Nxd5 {[%clk 0:02:58]} 5. dxc5 {[%clk 0:03:01]}  e6 {[%clk 0:02:57]} 6. b4 {[%clk 0:02:52]}  a5 {[%clk 0:02:56]} 7. Nf3 {[%clk 0:02:24]}  axb4 {[%clk 0:02:51]} 8. cxb4 {[%clk 0:02:24]}  Nxb4 {[%clk 0:02:50]} 9. Qxd8+ {[%clk 0:02:23]}  Kxd8 {[%clk 0:02:50]} 10. Na3 {[%clk 0:02:00]}  Bxc5 {[%clk 0:02:41]} 11. Rb1 {[%clk 0:01:42]}  Rxa3 {[%clk 0:02:32]} 12. Bxa3 {[%clk 0:01:41]}  Nc2+ {[%clk 0:02:32]} 13. Kd2 {[%clk 0:01:36]}  Nxa3 {[%clk 0:02:33]} 14. Rd1 {[%clk 0:01:35]}  Ke7 {[%clk 0:02:30]} 15. Kc3 {[%clk 0:01:34]}  Bd7 {[%clk 0:02:19]} 16. Ne5 {[%clk 0:01:29]}  Ba4 {[%clk 0:02:19]} 17. Rd2 {[%clk 0:01:24]}  Rc8 {[%clk 0:02:13]} 18. Kd3 {[%clk 0:01:16]}  Rd8+ {[%clk 0:01:52]} 19. Ke2 {[%clk 0:01:14]}  Bb5+ {[%clk 0:01:49]} 20. Kd1 {[%clk 0:01:14]}  Ba4+ {[%clk 0:01:45]} 21. Ke2 {[%clk 0:01:14]}  Nd7 {[%clk 0:01:36]} 22. Nxd7 {[%clk 0:01:09]}  Bxd7 {[%clk 0:01:37]} 23. Rb2 {[%clk 0:01:03]}  b6 {[%clk 0:01:32]} 24. Kf3 {[%clk 0:00:57]}  Bc6+ {[%clk 0:01:31]} 25. Kg3 {[%clk 0:00:57]}  Rd1 {[%clk 0:01:28]} 26. h4 {[%clk 0:00:50]}  Nc4 {[%clk 0:01:25]} 27. Rc2 {[%clk 0:00:45]}  Nd2 {[%clk 0:01:21]} 28. Bb5 {[%clk 0:00:43]}  Ne4+ {[%clk 0:01:14]} 29. Kf4 {[%clk 0:00:38]}  Rxh1 {[%clk 0:01:13]} 30. Bxc6 {[%clk 0:00:38]}  Rxh4+ {[%clk 0:01:13]} 31. Kf3 {[%clk 0:00:36]}  f5 {[%clk 0:01:10]} 32. g3 {[%clk 0:00:34]}  Rh2 {[%clk 0:01:08]} 0-1


[Site "https://www.chess.com"]

[Event "Titled Tuesday Blitz February 22 Early 2022"]
[White "Vokhidov, Shamsiddin"]
[Black "Pert, Nicholas"]
[WhiteFideId "14204223"]
[BlackFideId "403989"]
[WhiteElo "2611"]
[BlackElo "2536"]
[Result "1-0"]
[Round "02"]
[TimeControl "180+1"]
[Date "2022.02.22"]
[WhiteClock "0:01:53"]
[BlackClock "0:00:33"]

1. e4 {[%clk 0:03:00]}  c5 {[%clk 0:02:59]} 2. Nf3 {[%clk 0:03:01]}  Nc6 {[%clk 0:03:00]} 3. Bb5 {[%clk 0:03:01]}  g6 {[%clk 0:03:00]} 4. Bxc6 {[%clk 0:03:01]}  dxc6 {[%clk 0:03:01]} 5. O-O {[%clk 0:03:01]}  Bg7 {[%clk 0:03:00]} 6. d3 {[%clk 0:03:01]}  Nf6 {[%clk 0:03:01]} 7. Nc3 {[%clk 0:02:59]}  Nd7 {[%clk 0:02:59]} 8. Be3 {[%clk 0:02:58]}  e5 {[%clk 0:02:58]} 9. a3 {[%clk 0:02:57]}  b6 {[%clk 0:02:52]} 10. b4 {[%clk 0:02:57]}  O-O {[%clk 0:02:31]} 11. Qd2 {[%clk 0:02:55]}  f5 {[%clk 0:02:25]} 12. Bh6 {[%clk 0:02:53]}  f4 {[%clk 0:02:24]} 13. Bxg7 {[%clk 0:02:53]}  Kxg7 {[%clk 0:02:25]} 14. bxc5 {[%clk 0:02:51]}  bxc5 {[%clk 0:02:22]} 15. Ne2 {[%clk 0:02:39]}  g5 {[%clk 0:02:18]} 16. Qc3 {[%clk 0:02:36]}  Qf6 {[%clk 0:02:18]} 17. Nd2 {[%clk 0:02:33]}  g4 {[%clk 0:02:18]} 18. f3 {[%clk 0:02:33]}  h5 {[%clk 0:02:13]} 19. g3 {[%clk 0:02:24]}  Kh7 {[%clk 0:01:40]} 20. fxg4 {[%clk 0:02:21]}  Rg8 {[%clk 0:01:28]} 21. gxf4 {[%clk 0:02:10]}  Rxg4+ {[%clk 0:01:27]} 22. Kh1 {[%clk 0:02:10]}  Qh4 {[%clk 0:00:44]} 23. Nf3 {[%clk 0:02:08]}  Qh3 {[%clk 0:00:37]} 24. Ng5+ {[%clk 0:02:06]}  Rxg5 {[%clk 0:00:38]} 25. fxg5 {[%clk 0:02:07]}  Nf8 {[%clk 0:00:38]} 26. Qxe5 {[%clk 0:01:55]}  Bg4 {[%clk 0:00:36]} 27. Rf7+ {[%clk 0:01:54]}  Kg6 {[%clk 0:00:33]} 28. Qf6# {[%clk 0:01:53]} 1-0


[Site "https://www.chess.com"]

[Event "Titled Tuesday Blitz February 22 Early 2022"]
[White "Wachinger, Guenther"]
[Black "Lakshmi C"]
[WhiteFideId "4604261"]
[BlackFideId "25035347"]
[WhiteElo "2212"]
[BlackElo "1775"]
[Result "1-0"]
[Round "02"]
[TimeControl "180+1"]
[Date "2022.02.22"]
[WhiteClock "0:02:03"]
[BlackClock "0:01:12"]

1. e4 {[%clk 0:03:00]}  e5 {[%clk 0:02:54]} 2. Nf3 {[%clk 0:03:01]}  Nc6 {[%clk 0:02:54]} 3. Nc3 {[%clk 0:03:02]}  Nf6 {[%clk 0:02:53]} 4. a3 {[%clk 0:03:02]}  Bc5 {[%clk 0:02:53]} 5. Nxe5 {[%clk 0:03:01]}  Nxe5 {[%clk 0:02:53]} 6. d4 {[%clk 0:03:01]}  Bxd4 {[%clk 0:02:53]} 7. Qxd4 {[%clk 0:03:01]}  Nc6 {[%clk 0:02:54]} 8. Qd3 {[%clk 0:03:00]}  d6 {[%clk 0:02:55]} 9. Bg5 {[%clk 0:03:00]}  h6 {[%clk 0:02:54]} 10. Bh4 {[%clk 0:02:59]}  Ne5 {[%clk 0:02:54]} 11. Qd2 {[%clk 0:02:58]}  Ng6 {[%clk 0:02:54]} 12. Bg3 {[%clk 0:02:58]}  Be6 {[%clk 0:02:52]} 13. f4 {[%clk 0:02:57]}  Bd7 {[%clk 0:02:51]} 14. O-O-O {[%clk 0:02:57]}  Nh5 {[%clk 0:02:46]} 15. Bc4 {[%clk 0:02:53]}  Bc6 {[%clk 0:02:31]} 16. Rhe1 {[%clk 0:02:46]}  Nxg3 {[%clk 0:02:29]} 17. hxg3 {[%clk 0:02:47]}  Qd7 {[%clk 0:02:28]} 18. Qd4 {[%clk 0:02:41]}  a6 {[%clk 0:02:23]} 19. Qxg7 {[%clk 0:02:41]}  b5 {[%clk 0:02:22]} 20. Bd5 {[%clk 0:02:34]}  Rf8 {[%clk 0:02:13]} 21. e5 {[%clk 0:02:27]}  O-O-O {[%clk 0:02:10]} 22. Bxc6 {[%clk 0:02:25]}  Qxc6 {[%clk 0:02:10]} 23. e6 {[%clk 0:02:24]}  Rg8 {[%clk 0:01:50]} 24. Qxf7 {[%clk 0:02:20]}  Rdf8 {[%clk 0:01:49]} 25. Qh7 {[%clk 0:02:18]}  a5 {[%clk 0:01:43]} 26. Nd5 {[%clk 0:02:15]}  b4 {[%clk 0:01:33]} 27. Qxg6 {[%clk 0:02:11]}  Qa4 {[%clk 0:01:15]} 28. Qh7 {[%clk 0:02:04]}  Rh8 {[%clk 0:01:12]} 29. Qxc7# {[%clk 0:02:03]} 1-0


[Site "https://www.chess.com"]

[Event "Titled Tuesday Blitz February 22 Early 2022"]
[White "Winkels, Marcel"]
[Black "Ronka, Erik"]
[WhiteFideId "1003887"]
[BlackFideId "505080"]
[WhiteElo "1900"]
[BlackElo "2264"]
[Result "0-1"]
[Round "02"]
[TimeControl "180+1"]
[Date "2022.02.22"]
[WhiteClock "0:00:26"]
[BlackClock "0:02:27"]

1. e4 {[%clk 0:03:00]}  c6 {[%clk 0:03:00]} 2. d4 {[%clk 0:02:59]}  d5 {[%clk 0:03:01]} 3. e5 {[%clk 0:03:00]}  c5 {[%clk 0:03:01]} 4. dxc5 {[%clk 0:02:58]}  e6 {[%clk 0:03:01]} 5. a3 {[%clk 0:02:56]}  Nc6 {[%clk 0:03:01]} 6. Nf3 {[%clk 0:02:55]}  Bxc5 {[%clk 0:03:01]} 7. b4 {[%clk 0:02:54]}  Bb6 {[%clk 0:03:01]} 8. Bb2 {[%clk 0:02:54]}  Nge7 {[%clk 0:03:02]} 9. Bd3 {[%clk 0:02:53]}  Ng6 {[%clk 0:03:02]} 10. Qd2 {[%clk 0:02:30]}  d4 {[%clk 0:02:55]} 11. Bxg6 {[%clk 0:01:59]}  fxg6 {[%clk 0:02:55]} 12. O-O {[%clk 0:01:57]}  O-O {[%clk 0:02:55]} 13. Re1 {[%clk 0:01:55]}  Qd5 {[%clk 0:02:53]} 14. Qe2 {[%clk 0:01:22]}  Bd7 {[%clk 0:02:40]} 15. Nbd2 {[%clk 0:01:22]}  Rf5 {[%clk 0:02:34]} 16. Nc4 {[%clk 0:01:19]}  Bc7 {[%clk 0:02:34]} 17. g4 {[%clk 0:01:01]}  Rxf3 {[%clk 0:02:32]} 18. b5 {[%clk 0:00:52]}  Raf8 {[%clk 0:02:27]} 19. bxc6 {[%clk 0:00:48]}  Bxc6 {[%clk 0:02:28]} 20. Nd2 {[%clk 0:00:26]}  Rg3+ {[%clk 0:02:27]} 0-1


[Site "https://www.chess.com"]

[Event "Titled Tuesday Blitz February 22 Early 2022"]
[White "Xie, Bryan"]
[Black "Galyas, Miklos"]
[WhiteFideId "30941296"]
[BlackFideId "707244"]
[WhiteElo "1899"]
[BlackElo "2409"]
[Result "0-1"]
[Round "02"]
[TimeControl "180+1"]
[Date "2022.02.22"]
[WhiteClock "0:01:19"]
[BlackClock "0:02:32"]

1. d4 {[%clk 0:03:00]}  d5 {[%clk 0:02:58]} 2. Nf3 {[%clk 0:03:01]}  Nf6 {[%clk 0:02:56]} 3. Bf4 {[%clk 0:03:01]}  c5 {[%clk 0:02:54]} 4. e3 {[%clk 0:03:02]}  Nc6 {[%clk 0:02:53]} 5. Nbd2 {[%clk 0:03:02]}  Bg4 {[%clk 0:02:52]} 6. h3 {[%clk 0:02:53]}  Bh5 {[%clk 0:02:51]} 7. c3 {[%clk 0:02:54]}  cxd4 {[%clk 0:02:51]} 8. exd4 {[%clk 0:02:53]}  e6 {[%clk 0:02:52]} 9. g4 {[%clk 0:02:39]}  Bg6 {[%clk 0:02:51]} 10. Bb5 {[%clk 0:02:39]}  Bd6 {[%clk 0:02:49]} 11. Bxd6 {[%clk 0:02:31]}  Qxd6 {[%clk 0:02:48]} 12. Ne5 {[%clk 0:02:32]}  Nd7 {[%clk 0:02:45]} 13. f4 {[%clk 0:02:26]}  Ndxe5 {[%clk 0:02:43]} 14. fxe5 {[%clk 0:02:18]}  Qe7 {[%clk 0:02:43]} 15. Bxc6+ {[%clk 0:02:17]}  bxc6 {[%clk 0:02:42]} 16. Nb3 {[%clk 0:02:18]}  O-O {[%clk 0:02:41]} 17. Nc5 {[%clk 0:02:18]}  f6 {[%clk 0:02:41]} 18. exf6 {[%clk 0:02:13]}  Rxf6 {[%clk 0:02:38]} 19. Qe2 {[%clk 0:02:10]}  Raf8 {[%clk 0:02:37]} 20. O-O-O {[%clk 0:02:09]}  Rf2 {[%clk 0:02:34]} 21. Qxe6+ {[%clk 0:01:39]}  Qxe6 {[%clk 0:02:34]} 22. Nxe6 {[%clk 0:01:40]}  Rc2+ {[%clk 0:02:34]} 23. Kb1 {[%clk 0:01:40]}  Rff2 {[%clk 0:02:32]} 24. Ka1 {[%clk 0:01:19]}  Rxb2 {[%clk 0:02:32]} 0-1


[Site "https://www.chess.com"]

[Event "Titled Tuesday Blitz February 22 Early 2022"]
[White "Yang, Kaiqi"]
[Black "Lodici, Lorenzo"]
[WhiteFideId "8604398"]
[BlackFideId "884189"]
[WhiteElo "2373"]
[BlackElo "2265"]
[Result "0-1"]
[Round "02"]
[TimeControl "180+1"]
[Date "2022.02.22"]
[WhiteClock "0:00:02"]
[BlackClock "0:00:37"]

1. c4 {[%clk 0:03:00]}  b6 {[%clk 0:02:53]} 2. g3 {[%clk 0:02:54]}  Bb7 {[%clk 0:02:51]} 3. Nf3 {[%clk 0:02:55]}  g6 {[%clk 0:02:47]} 4. Bg2 {[%clk 0:02:55]}  Bg7 {[%clk 0:02:48]} 5. d4 {[%clk 0:02:53]}  Nf6 {[%clk 0:02:47]} 6. Nc3 {[%clk 0:02:53]}  Ne4 {[%clk 0:02:46]} 7. Bd2 {[%clk 0:02:53]}  O-O {[%clk 0:02:46]} 8. Rc1 {[%clk 0:02:53]}  e6 {[%clk 0:02:43]} 9. O-O {[%clk 0:02:48]}  Nxd2 {[%clk 0:02:41]} 10. Qxd2 {[%clk 0:02:48]}  d6 {[%clk 0:02:42]} 11. e4 {[%clk 0:02:46]}  Nd7 {[%clk 0:02:43]} 12. h4 {[%clk 0:02:44]}  Nf6 {[%clk 0:02:38]} 13. Rfe1 {[%clk 0:02:45]}  a6 {[%clk 0:02:34]} 14. d5 {[%clk 0:02:29]}  e5 {[%clk 0:02:26]} 15. Bh3 {[%clk 0:02:27]}  Nd7 {[%clk 0:02:21]} 16. h5 {[%clk 0:02:22]}  Nf6 {[%clk 0:02:11]} 17. hxg6 {[%clk 0:02:16]}  hxg6 {[%clk 0:02:12]} 18. Kg2 {[%clk 0:02:15]}  Qe7 {[%clk 0:02:03]} 19. Rh1 {[%clk 0:02:15]}  c6 {[%clk 0:02:01]} 20. Ng5 {[%clk 0:02:07]}  b5 {[%clk 0:01:42]} 21. b3 {[%clk 0:01:48]}  Bh6 {[%clk 0:01:21]} 22. Bf5 {[%clk 0:00:42]}  Bg7 {[%clk 0:01:14]} 23. Bh3 {[%clk 0:00:34]}  bxc4 {[%clk 0:01:14]} 24. bxc4 {[%clk 0:00:34]}  cxd5 {[%clk 0:01:14]} 25. cxd5 {[%clk 0:00:33]}  Bh6 {[%clk 0:01:03]} 26. Bc8 {[%clk 0:00:17]}  Nh5 {[%clk 0:00:36]} 27. Rxh5 {[%clk 0:00:03]}  gxh5 {[%clk 0:00:37]} 28. Bxb7 {[%clk 0:00:02]}  Bxg5 {[%clk 0:00:37]} 0-1


[Site "https://www.chess.com"]

[Event "Titled Tuesday Blitz February 22 Early 2022"]
[White "wisdomboy"]
[Black "Magallanes, Rey Jomar"]
[BlackFideId "5205948"]
[WhiteElo "2452"]
[BlackElo "2216"]
[Result "0-1"]
[Round "02"]
[TimeControl "180+1"]
[Date "2022.02.22"]
[WhiteClock "0:00:15"]
[BlackClock "0:01:12"]

1. d4 {[%clk 0:03:00]}  d5 {[%clk 0:02:52]} 2. c4 {[%clk 0:03:00]}  e6 {[%clk 0:02:50]} 3. Nc3 {[%clk 0:03:00]}  Nf6 {[%clk 0:02:49]} 4. Nf3 {[%clk 0:03:00]}  Nbd7 {[%clk 0:02:47]} 5. Bf4 {[%clk 0:03:00]}  dxc4 {[%clk 0:02:36]} 6. e3 {[%clk 0:02:47]}  Nb6 {[%clk 0:02:35]} 7. Ne5 {[%clk 0:02:43]}  Bb4 {[%clk 0:02:32]} 8. Qc2 {[%clk 0:02:28]}  Nfd5 {[%clk 0:02:30]} 9. Bg3 {[%clk 0:02:19]}  Bd7 {[%clk 0:02:26]} 10. Bxc4 {[%clk 0:01:51]}  Nxc4 {[%clk 0:02:19]} 11. Nxc4 {[%clk 0:01:52]}  Rc8 {[%clk 0:02:18]} 12. O-O {[%clk 0:01:50]}  Bxc3 {[%clk 0:02:12]} 13. bxc3 {[%clk 0:01:49]}  Bb5 {[%clk 0:02:12]} 14. Qb3 {[%clk 0:01:46]}  Ba6 {[%clk 0:02:08]} 15. Rfd1 {[%clk 0:01:39]}  b5 {[%clk 0:01:58]} 16. Ne5 {[%clk 0:01:33]}  c5 {[%clk 0:01:55]} 17. dxc5 {[%clk 0:01:26]}  Qa5 {[%clk 0:01:53]} 18. c6 {[%clk 0:01:05]}  Qxc3 {[%clk 0:01:49]} 19. Qxc3 {[%clk 0:01:02]}  Nxc3 {[%clk 0:01:50]} 20. Rd7 {[%clk 0:01:02]}  O-O {[%clk 0:01:36]} 21. Rxa7 {[%clk 0:00:59]}  Ra8 {[%clk 0:01:34]} 22. Rxa8 {[%clk 0:00:42]}  Rxa8 {[%clk 0:01:35]} 23. c7 {[%clk 0:00:43]}  Rc8 {[%clk 0:01:26]} 24. Nd3 {[%clk 0:00:14]}  Ne2+ {[%clk 0:01:19]} 25. Kh1 {[%clk 0:00:14]}  Nxg3+ {[%clk 0:01:20]} 26. hxg3 {[%clk 0:00:15]}  Rxc7 {[%clk 0:01:20]} 27. Nb4 {[%clk 0:00:15]}  Bc8 {[%clk 0:01:20]} 28. a4 {[%clk 0:00:15]}  bxa4 {[%clk 0:01:19]} 29. Rxa4 {[%clk 0:00:16]}  g6 {[%clk 0:01:17]} 30. Ra8 {[%clk 0:00:16]}  Kg7 {[%clk 0:01:13]} 31. Kh2 {[%clk 0:00:16]}  Rc4 {[%clk 0:01:12]} 32. Nd3 {[%clk 0:00:15]}  Bb7 {[%clk 0:01:12]} 33. g4 {[%clk 0:00:15]}  Bxa8 {[%clk 0:01:12]} 0-1


[Site "https://www.chess.com"]

[Event "Titled Tuesday Blitz February 22 Early 2022"]
[White "Aaditya Dhingra"]
[Black "Tasev, Dejan"]
[WhiteFideId "25678191"]
[BlackFideId "936618"]
[WhiteElo "1789"]
[BlackElo "2253"]
[Result "0-1"]
[Round "03"]
[TimeControl "180+1"]
[Date "2022.02.22"]
[WhiteClock "0:00:01"]
[BlackClock "0:00:15"]

1. e4 {[%clk 0:03:00]}  c5 {[%clk 0:02:59]} 2. Nf3 {[%clk 0:02:59]}  Nc6 {[%clk 0:02:58]} 3. d4 {[%clk 0:02:59]}  cxd4 {[%clk 0:02:58]} 4. Nxd4 {[%clk 0:03:00]}  Nf6 {[%clk 0:02:57]} 5. Nc3 {[%clk 0:02:59]}  d6 {[%clk 0:02:57]} 6. f3 {[%clk 0:02:54]}  g6 {[%clk 0:02:57]} 7. Be3 {[%clk 0:02:53]}  Bg7 {[%clk 0:02:57]} 8. Qd2 {[%clk 0:02:53]}  O-O {[%clk 0:02:57]} 9. O-O-O {[%clk 0:02:53]}  Bd7 {[%clk 0:02:56]} 10. g4 {[%clk 0:02:52]}  Rc8 {[%clk 0:02:56]} 11. h4 {[%clk 0:02:03]}  h5 {[%clk 0:02:55]} 12. gxh5 {[%clk 0:01:56]}  Nxh5 {[%clk 0:02:54]} 13. Rg1 {[%clk 0:01:54]}  Ne5 {[%clk 0:02:51]} 14. Be2 {[%clk 0:01:32]}  Nc4 {[%clk 0:02:44]} 15. Bxc4 {[%clk 0:01:31]}  Rxc4 {[%clk 0:02:44]} 16. Rg5 {[%clk 0:01:24]}  Nf6 {[%clk 0:02:20]} 17. Rdg1 {[%clk 0:01:21]}  Nh7 {[%clk 0:02:06]} 18. R5g2 {[%clk 0:01:18]}  Qa5 {[%clk 0:01:51]} 19. Kb1 {[%clk 0:01:10]}  Rfc8 {[%clk 0:01:34]} 20. Nb3 {[%clk 0:01:06]}  Qh5 {[%clk 0:01:22]} 21. Nd5 {[%clk 0:01:04]}  Rxc2 {[%clk 0:01:07]} 22. Qxc2 {[%clk 0:00:50]}  Rxc2 {[%clk 0:01:07]} 23. Rxc2 {[%clk 0:00:51]}  Qxf3 {[%clk 0:00:50]} 24. Nd2 {[%clk 0:00:35]}  Qh3 {[%clk 0:00:40]} 25. h5 {[%clk 0:00:30]}  Qxh5 {[%clk 0:00:36]} 26. Rc7 {[%clk 0:00:29]}  Nf8 {[%clk 0:00:33]} 27. Nxe7+ {[%clk 0:00:28]}  Kh7 {[%clk 0:00:32]} 28. Nd5 {[%clk 0:00:24]}  Be6 {[%clk 0:00:28]} 29. Nf4 {[%clk 0:00:22]}  Qe5 {[%clk 0:00:25]} 30. Rh1+ {[%clk 0:00:18]}  Kg8 {[%clk 0:00:25]} 31. Nd3 {[%clk 0:00:18]}  Qb5 {[%clk 0:00:21]} 32. Kc2 {[%clk 0:00:13]}  Bxa2 {[%clk 0:00:18]} 33. b3 {[%clk 0:00:12]}  a5 {[%clk 0:00:17]} 34. e5 {[%clk 0:00:10]}  a4 {[%clk 0:00:17]} 35. bxa4 {[%clk 0:00:10]}  Qxa4+ {[%clk 0:00:18]} 36. Kc1 {[%clk 0:00:09]}  Be6 {[%clk 0:00:18]} 37. exd6 {[%clk 0:00:06]}  Qa2 {[%clk 0:00:18]} 38. Nb1 {[%clk 0:00:05]}  Qg2 {[%clk 0:00:17]} 39. Rg1 {[%clk 0:00:04]}  Qe4 {[%clk 0:00:17]} 40. Kd2 {[%clk 0:00:03]}  Bf5 {[%clk 0:00:16]} 41. Nf2 {[%clk 0:00:02]}  Qd5+ {[%clk 0:00:16]} 42. Ke2 {[%clk 0:00:03]}  Qb5+ {[%clk 0:00:16]} 43. Kf3 {[%clk 0:00:01]}  Bxb1 {[%clk 0:00:16]} 44. Kg3 {[%clk 0:00:01]}  Be5+ {[%clk 0:00:15]} 0-1


[Site "https://www.chess.com"]

[Event "Titled Tuesday Blitz February 22 Early 2022"]
[White "Atakishiyev, Elmar"]
[Black "Purtseladze, Maka"]
[WhiteFideId "13410547"]
[BlackFideId "13602659"]
[WhiteElo "2087"]
[BlackElo "2192"]
[Result "1-0"]
[Round "03"]
[TimeControl "180+1"]
[Date "2022.02.22"]
[WhiteClock "0:00:54"]
[BlackClock "0:00:05"]

1. Nf3 {[%clk 0:03:00]}  Nf6 {[%clk 0:02:59]} 2. g3 {[%clk 0:02:59]}  g6 {[%clk 0:02:59]} 3. Bg2 {[%clk 0:02:59]}  Bg7 {[%clk 0:03:00]} 4. O-O {[%clk 0:02:55]}  d6 {[%clk 0:03:00]} 5. d4 {[%clk 0:02:55]}  c6 {[%clk 0:02:50]} 6. b3 {[%clk 0:02:54]}  a5 {[%clk 0:02:48]} 7. a4 {[%clk 0:02:51]}  Bf5 {[%clk 0:02:46]} 8. Bb2 {[%clk 0:02:49]}  Qd7 {[%clk 0:02:45]} 9. Re1 {[%clk 0:02:45]}  Na6 {[%clk 0:02:44]} 10. Nbd2 {[%clk 0:02:43]}  O-O {[%clk 0:02:40]} 11. e4 {[%clk 0:02:43]}  Bh3 {[%clk 0:02:40]} 12. Bh1 {[%clk 0:02:43]}  Nb4 {[%clk 0:02:28]} 13. Nc4 {[%clk 0:02:42]}  Qc7 {[%clk 0:02:13]} 14. Ng5 {[%clk 0:02:38]}  Bg4 {[%clk 0:02:08]} 15. Qd2 {[%clk 0:02:32]}  h6 {[%clk 0:02:02]} 16. Nf3 {[%clk 0:02:23]}  Nxe4 {[%clk 0:01:50]} 17. Rxe4 {[%clk 0:02:04]}  Bxf3 {[%clk 0:01:50]} 18. Bxf3 {[%clk 0:01:59]}  d5 {[%clk 0:01:50]} 19. Re2 {[%clk 0:01:51]}  dxc4 {[%clk 0:01:50]} 20. bxc4 {[%clk 0:01:52]}  e6 {[%clk 0:01:43]} 21. c3 {[%clk 0:01:49]}  Na6 {[%clk 0:01:43]} 22. Ba3 {[%clk 0:01:50]}  Rfd8 {[%clk 0:01:36]} 23. Qe3 {[%clk 0:01:51]}  Re8 {[%clk 0:01:25]} 24. Rb1 {[%clk 0:01:49]}  Rad8 {[%clk 0:01:24]} 25. Reb2 {[%clk 0:01:46]}  Rb8 {[%clk 0:01:15]} 26. h4 {[%clk 0:01:45]}  e5 {[%clk 0:01:06]} 27. d5 {[%clk 0:01:44]}  e4 {[%clk 0:01:04]} 28. Bg2 {[%clk 0:01:28]}  cxd5 {[%clk 0:00:37]} 29. cxd5 {[%clk 0:01:27]}  Qxc3 {[%clk 0:00:38]} 30. Qxc3 {[%clk 0:01:22]}  Bxc3 {[%clk 0:00:39]} 31. Rxb7 {[%clk 0:01:23]}  Rxb7 {[%clk 0:00:39]} 32. Rxb7 {[%clk 0:01:23]}  Bb4 {[%clk 0:00:40]} 33. Bb2 {[%clk 0:01:22]}  Nc5 {[%clk 0:00:39]} 34. Rc7 {[%clk 0:01:21]}  Nxa4 {[%clk 0:00:38]} 35. Bd4 {[%clk 0:01:22]}  h5 {[%clk 0:00:21]} 36. Bf1 {[%clk 0:01:19]}  Rd8 {[%clk 0:00:21]} 37. Bc4 {[%clk 0:01:16]}  Bd6 {[%clk 0:00:19]} 38. Rc6 {[%clk 0:01:15]}  e3 {[%clk 0:00:09]} 39. Bxe3 {[%clk 0:01:06]}  Nb2 {[%clk 0:00:09]} 40. Bg5 {[%clk 0:01:05]}  Rd7 {[%clk 0:00:08]} 41. Bb5 {[%clk 0:01:03]}  Kg7 {[%clk 0:00:05]} 42. Rb6 {[%clk 0:00:54]} 1-0


[Site "https://www.chess.com"]

[Event "Titled Tuesday Blitz February 22 Early 2022"]
[White "Bachmann, Axel"]
[Black "Guliev, Logman"]
[WhiteFideId "3700488"]
[BlackFideId "13400061"]
[WhiteElo "2642"]
[BlackElo "2128"]
[Result "1-0"]
[Round "03"]
[TimeControl "180+1"]
[Date "2022.02.22"]
[WhiteClock "0:01:25"]
[BlackClock "0:00:02"]

1. d4 {[%clk 0:02:56]}  Nf6 {[%clk 0:02:58]} 2. c4 {[%clk 0:02:55]}  g6 {[%clk 0:02:59]} 3. Nc3 {[%clk 0:02:55]}  Bg7 {[%clk 0:02:59]} 4. e4 {[%clk 0:02:54]}  d6 {[%clk 0:03:00]} 5. h3 {[%clk 0:02:53]}  O-O {[%clk 0:02:59]} 6. g4 {[%clk 0:02:49]}  c5 {[%clk 0:02:51]} 7. Nge2 {[%clk 0:02:49]}  cxd4 {[%clk 0:02:50]} 8. Nxd4 {[%clk 0:02:50]}  Nc6 {[%clk 0:02:50]} 9. Be3 {[%clk 0:02:50]}  Qa5 {[%clk 0:02:43]} 10. Bg2 {[%clk 0:02:49]}  Nd7 {[%clk 0:02:12]} 11. O-O {[%clk 0:02:47]}  Nxd4 {[%clk 0:02:11]} 12. Bxd4 {[%clk 0:02:48]}  Bxd4 {[%clk 0:02:08]} 13. Qxd4 {[%clk 0:02:49]}  Qe5 {[%clk 0:02:04]} 14. Qd2 {[%clk 0:02:44]}  h5 {[%clk 0:02:02]} 15. Nd5 {[%clk 0:02:13]}  hxg4 {[%clk 0:02:00]} 16. hxg4 {[%clk 0:02:14]}  Nf6 {[%clk 0:01:00]} 17. f4 {[%clk 0:02:10]}  Qe6 {[%clk 0:01:00]} 18. Nc7 {[%clk 0:02:06]}  Qxg4 {[%clk 0:01:00]} 19. Nxa8 {[%clk 0:02:06]}  Nxe4 {[%clk 0:00:58]} 20. Qd1 {[%clk 0:02:03]}  Ng3 {[%clk 0:00:43]} 21. Rf3 {[%clk 0:01:44]}  Bf5 {[%clk 0:00:31]} 22. Nc7 {[%clk 0:01:43]}  Be4 {[%clk 0:00:32]} 23. Nd5 {[%clk 0:01:38]}  Nf5 {[%clk 0:00:18]} 24. Rf2 {[%clk 0:01:30]}  Qg3 {[%clk 0:00:15]} 25. Qb3 {[%clk 0:01:31]}  Qg4 {[%clk 0:00:12]} 26. Qh3 {[%clk 0:01:27]}  Qxg2+ {[%clk 0:00:02]} 27. Rxg2 {[%clk 0:01:25]} 1-0


[Site "https://www.chess.com"]